Workbook

Sheet Calculator
B2: This is a calculator to help you calculate the Flow Rate and Steam Consumption per hour with SuperKlean 8000 Series Steam & Cold Water Mixing Unit. Please use the left button if you are using Imperial/British Unit. Please use the right buttion if you are using Metric Unit.
B10: Trouble running the calculator? Follow the instructions in this Microsoft Support article. Please make sure to close and reopen this file after completing the steps listed under "Unblock a single file"
B14: The Flow Rate and Steam Consumption Calculator is only available on the desktop version of Microsoft Excel

Sheet Sheet2 (hidden)
A1: Imperial Unit | E1: Metric Unit
A2: Input Data | E2: Input Data
A3: Cold Water Temp (°F) | B3: 40 | E3: Cold Water Temp (°C) | F3: 10
A4: Required Hot Water Temp (°F) | B4: 160 | E4: Required Hot Water Temp (°C) | F4: 80
A5: Cold Water Pressure (psi) | B5: 50 | E5: Cold Water Pressure (bar) | F5: 5
A6: Steam Pressure (psi) | B6: 70 | E6: Steam Pressure (bar) | F6: 6
A7: Result | E7: Result
A8: Hot Water Flow Rate (gal/min) | B8: =Worksheet!B8 -> 7.222222222 | E8: Hot Water Flow Rate (l/min) | F8: =Worksheet!G8*Worksheet!G4 -> 30.46714277
A9: Steam Consumption (pound/h) | B9: =(B8*60*Worksheet!G4*2.2*4.19*Worksheet!B1/1.8)/Worksheet!B3 -> 480.961053 | E9: Steam Consumption (kg/h) | F9: =(F8*60*4.19*Worksheet!G1)/Worksheet!G3 -> 259.6520826

Sheet Worksheet (hidden)
A1: Temperature Rise °F | B1: =Sheet2!B4-Sheet2!B3 -> 120 | F1: Temperature Rise °C | G1: =Sheet2!F4-Sheet2!F3 -> 70
F2: Temperature Rise °F | G2: =G1*1.8 -> 126
A3: Steam Property | B3: =LOOKUP((ROUND(Sheet2!B6/Worksheet!B4,1))+1, 'Data Sheet 1'!A4:A70,'Data Sheet 1'!I4:I70) -> 2095.9 | F3: Steam Property | G3: =LOOKUP(ROUND(Sheet2!F6,1)+1, 'Data Sheet 1'!A4:A70,'Data Sheet 1'!I4:I70) -> 2064.92
A4: Bar/psi constant | B4: =14.5038 -> 14.5038 | F4: Gallon/liter constant | G4: 3.78541
B6: Cold psi | C6: Steam psi | D6: Termperature Rise °F | G6: Cold bar | H6: Steam bar | I6: Termperature Rise °F
B7: =Sheet2!B5 -> 50 | C7: =Sheet2!B6 -> 70 | D7: =Worksheet!B1 -> 120 | G7: =Sheet2!F5 -> 5 | H7: =Sheet2!F6 -> 6 | I7: =G2 -> 126
A8: Flow Rate | B8: =IF(OR(B1=55,AND(B1>55,B1<100)),B13-((B13-B14)*(B1-55)/(100-55)),IF(OR(B1=100,AND(B1>100,B1<135),B1=135),B14-((B14-B15)*(B1-100)/(135-100)),IF(OR(B1=0,AND(B1>0,B1<55)),B12-((B12-B13)*(B1-0)/(55-0))))) -> 7.222222222 | F8: Flow Rate | G8: =IF(OR(G2=55,AND(G2>55,G2<100)),G13-((G13-G14)*(G2-55)/(100-55)),IF(OR(G2=100,AND(G2>100,G2<135),G2=135),G14-((G14-G15)*(G2-100)/(135-100)),IF(OR(G2=0,AND(G2>0,G2<55)),G12-((G12-G13)*(G2-0)/(55-0))))) -> 8.048571429
B11: Flow Rate | G11: Flow Rate
A12: TR 0 | B12: =LOOKUP(1,0/(('Data Sheet_b'!A2:A19505=ROUND(B7,0))*('Data Sheet_b'!B2:B19505=ROUND(C7,0))*('Data Sheet_b'!C2:C19505=0)),'Data Sheet_b'!D2:D19505) -> 13.4 | F12: TR 0 | G12: =LOOKUP(1,0/(('Data Sheet_b'!F2:F8805=ROUND(G7,1))*('Data Sheet_b'!G2:G8805=ROUND(H7,1))*('Data Sheet_b'!H2:H8805=0)),'Data Sheet_b'!I2:I8805) -> 13.8
A13: TR 55 | B13: =LOOKUP(1,0/(('Data Sheet_b'!A2:A19505=ROUND(B7,0))*('Data Sheet_b'!B2:B19505=ROUND(C7,0))*('Data Sheet_b'!C2:C19505=55)),'Data Sheet_b'!D2:D19505) -> 11.70555556 | F13: TR 55 | G13: =LOOKUP(1,0/(('Data Sheet_b'!F2:F8805=ROUND(G7,1))*('Data Sheet_b'!G2:G8805=ROUND(H7,1))*('Data Sheet_b'!H2:H8805=55)),'Data Sheet_b'!I2:I8805) -> 13.25
A14: TR 100 | B14: =LOOKUP(1,0/(('Data Sheet_b'!A2:A19505=ROUND(B7,0))*('Data Sheet_b'!B2:B19505=ROUND(C7,0))*('Data Sheet_b'!C2:C19505=100)),'Data Sheet_b'!D2:D19505) -> 7.933333333 | F14: TR 100 | G14: =LOOKUP(1,0/(('Data Sheet_b'!F2:F8805=ROUND(G7,1))*('Data Sheet_b'!G2:G8805=ROUND(H7,1))*('Data Sheet_b'!H2:H8805=100)),'Data Sheet_b'!I2:I8805) -> 9.2
A15: TR 135 | B15: =LOOKUP(1,0/(('Data Sheet_b'!A2:A19505=ROUND(B7,0))*('Data Sheet_b'!B2:B19505=ROUND(C7,0))*('Data Sheet_b'!C2:C19505=135)),'Data Sheet_b'!D2:D19505) -> 6.688888889 | F15: TR 135 | G15: =LOOKUP(1,0/(('Data Sheet_b'!F2:F8805=ROUND(G7,1))*('Data Sheet_b'!G2:G8805=ROUND(H7,1))*('Data Sheet_b'!H2:H8805=135)),'Data Sheet_b'!I2:I8805) -> 7.65

Sheet Data Sheet_b (hidden)
A1: Cold | B1: Steam | C1: TR | D1: Flow | F1: Cold | G1: Steam | H1: TR | I1: Flow
A2: 30 | B2: 45 | C2: 0 | D2: 13.1 | F2: 2 | G2: 3 | H2: 55 | I2: 10
A3: 30 | B3: 46 | C3: 0 | D3: 13.1 | F3: 2 | G3: 3.1 | H3: 55 | I3: 10.09
A4: 30 | B4: 47 | C4: 0 | D4: 13.1 | F4: 2 | G4: 3.2 | H4: 55 | I4: 10.18
A5: 30 | B5: 48 | C5: 0 | D5: 13.1 | F5: 2 | G5: 3.3 | H5: 55 | I5: 10.27
A6: 30 | B6: 49 | C6: 0 | D6: 13.1 | F6: 2 | G6: 3.4 | H6: 55 | I6: 10.36
A7: 30 | B7: 50 | C7: 0 | D7: 13.1 | F7: 2 | G7: 3.5 | H7: 55 | I7: 10.45
A8: 30 | B8: 51 | C8: 0 | D8: 13.1 | F8: 2 | G8: 3.6 | H8: 55 | I8: 10.54
A9: 30 | B9: 52 | C9: 0 | D9: 13.1 | F9: 2 | G9: 3.7 | H9: 55 | I9: 10.63
A10: 30 | B10: 53 | C10: 0 | D10: 13.1 | F10: 2 | G10: 3.8 | H10: 55 | I10: 10.72
A11: 30 | B11: 54 | C11: 0 | D11: 13.1 | F11: 2 | G11: 3.9 | H11: 55 | I11: 10.81
A12: 30 | B12: 55 | C12: 0 | D12: 13.1 | F12: 2 | G12: 4 | H12: 55 | I12: 10.9
A13: 30 | B13: 56 | C13: 0 | D13: 13.1 | F13: 2 | G13: 4.1 | H13: 55 | I13: 10.99
A14: 30 | B14: 57 | C14: 0 | D14: 13.1 | F14: 2 | G14: 4.2 | H14: 55 | I14: 11.08
A15: 30 | B15: 58 | C15: 0 | D15: 13.1 | F15: 2 | G15: 4.3 | H15: 55 | I15: 11.17
A16: 30 | B16: 59 | C16: 0 | D16: 13.1 | F16: 2 | G16: 4.4 | H16: 55 | I16: 11.26
A17: 30 | B17: 60 | C17: 0 | D17: 13.1 | F17: 2 | G17: 4.5 | H17: 55 | I17: 11.35
A18: 30 | B18: 61 | C18: 0 | D18: 13.1 | F18: 2 | G18: 4.6 | H18: 55 | I18: 11.44
A19: 30 | B19: 62 | C19: 0 | D19: 13.1 | F19: 2 | G19: 4.7 | H19: 55 | I19: 11.53
A20: 30 | B20: 63 | C20: 0 | D20: 13.1 | F20: 2 | G20: 4.8 | H20: 55 | I20: 11.62
A21: 30 | B21: 64 | C21: 0 | D21: 13.1 | F21: 2 | G21: 4.9 | H21: 55 | I21: 11.71
A22: 30 | B22: 65 | C22: 0 | D22: 13.1 | F22: 2 | G22: 5 | H22: 55 | I22: 11.8
A23: 30 | B23: 66 | C23: 0 | D23: 13.1 | F23: 2 | G23: 5.1 | H23: 55 | I23: 11.86
A24: 30 | B24: 67 | C24: 0 | D24: 13.1 | F24: 2 | G24: 5.2 | H24: 55 | I24: 11.92
A25: 30 | B25: 68 | C25: 0 | D25: 13.1 | F25: 2 | G25: 5.3 | H25: 55 | I25: 11.98
A26: 30 | B26: 69 | C26: 0 | D26: 13.1 | F26: 2 | G26: 5.4 | H26: 55 | I26: 12.04
A27: 30 | B27: 70 | C27: 0 | D27: 13.1 | F27: 2 | G27: 5.5 | H27: 55 | I27: 12.1
A28: 30 | B28: 71 | C28: 0 | D28: 13.1 | F28: 2 | G28: 5.6 | H28: 55 | I28: 12.16
A29: 30 | B29: 72 | C29: 0 | D29: 13.1 | F29: 2 | G29: 5.7 | H29: 55 | I29: 12.22
A30: 30 | B30: 73 | C30: 0 | D30: 13.1 | F30: 2 | G30: 5.8 | H30: 55 | I30: 12.28
A31: 30 | B31: 74 | C31: 0 | D31: 13.1 | F31: 2 | G31: 5.9 | H31: 55 | I31: 12.34
A32: 30 | B32: 75 | C32: 0 | D32: 13.1 | F32: 2 | G32: 6 | H32: 55 | I32: 12.4
A33: 30 | B33: 76 | C33: 0 | D33: 13.1 | F33: 2 | G33: 6.1 | H33: 55 | I33: 12.46
A34: 30 | B34: 77 | C34: 0 | D34: 13.1 | F34: 2 | G34: 6.2 | H34: 55 | I34: 12.52
A35: 30 | B35: 78 | C35: 0 | D35: 13.1 | F35: 2 | G35: 6.3 | H35: 55 | I35: 12.58
A36: 30 | B36: 79 | C36: 0 | D36: 13.1 | F36: 2 | G36: 6.4 | H36: 55 | I36: 12.64
A37: 30 | B37: 80 | C37: 0 | D37: 13.1 | F37: 2 | G37: 6.5 | H37: 55 | I37: 12.7
A38: 30 | B38: 81 | C38: 0 | D38: 13.1 | F38: 2 | G38: 6.6 | H38: 55 | I38: 12.76
A39: 30 | B39: 82 | C39: 0 | D39: 13.1 | F39: 2 | G39: 6.7 | H39: 55 | I39: 12.82
A40: 30 | B40: 83 | C40: 0 | D40: 13.1 | F40: 2 | G40: 6.8 | H40: 55 | I40: 12.88
A41: 30 | B41: 84 | C41: 0 | D41: 13.1 | F41: 2 | G41: 6.9 | H41: 55 | I41: 12.94
A42: 30 | B42: 85 | C42: 0 | D42: 13.1 | F42: 2 | G42: 7 | H42: 55 | I42: 13
A43: 30 | B43: 86 | C43: 0 | D43: 13.1 | F43: 2 | G43: 7.1 | H43: 55 | I43: 13.055
A44: 30 | B44: 87 | C44: 0 | D44: 13.1 | F44: 2 | G44: 7.2 | H44: 55 | I44: 13.11
A45: 30 | B45: 88 | C45: 0 | D45: 13.1 | F45: 2 | G45: 7.3 | H45: 55 | I45: 13.165
A46: 30 | B46: 89 | C46: 0 | D46: 13.1 | F46: 2 | G46: 7.4 | H46: 55 | I46: 13.22
A47: 30 | B47: 90 | C47: 0 | D47: 13.1 | F47: 2 | G47: 7.5 | H47: 55 | I47: 13.275
A48: 30 | B48: 91 | C48: 0 | D48: 13.1 | F48: 2 | G48: 7.6 | H48: 55 | I48: 13.33
A49: 30 | B49: 92 | C49: 0 | D49: 13.1 | F49: 2 | G49: 7.7 | H49: 55 | I49: 13.385
A50: 30 | B50: 93 | C50: 0 | D50: 13.1 | F50: 2 | G50: 7.8 | H50: 55 | I50: 13.44
A51: 30 | B51: 94 | C51: 0 | D51: 13.1 | F51: 2 | G51: 7.9 | H51: 55 | I51: 13.495
A52: 30 | B52: 95 | C52: 0 | D52: 13.1 | F52: 2 | G52: 8 | H52: 55 | I52: 13.55
A53: 30 | B53: 96 | C53: 0 | D53: 13.1 | F53: 2 | G53: 8.1 | H53: 55 | I53: 13.605
A54: 30 | B54: 97 | C54: 0 | D54: 13.1 | F54: 2 | G54: 8.2 | H54: 55 | I54: 13.66
A55: 30 | B55: 98 | C55: 0 | D55: 13.1 | F55: 2 | G55: 8.3 | H55: 55 | I55: 13.715
A56: 30 | B56: 99 | C56: 0 | D56: 13.1 | F56: 2 | G56: 8.4 | H56: 55 | I56: 13.77
A57: 30 | B57: 100 | C57: 0 | D57: 13.1 | F57: 2 | G57: 8.5 | H57: 55 | I57: 13.825
A58: 30 | B58: 101 | C58: 0 | D58: 13.1 | F58: 2 | G58: 8.6 | H58: 55 | I58: 13.88
A59: 30 | B59: 102 | C59: 0 | D59: 13.1 | F59: 2 | G59: 8.7 | H59: 55 | I59: 13.935
A60: 30 | B60: 103 | C60: 0 | D60: 13.1 | F60: 2 | G60: 8.8 | H60: 55 | I60: 13.99
A61: 30 | B61: 104 | C61: 0 | D61: 13.1 | F61: 2 | G61: 8.9 | H61: 55 | I61: 14.045
A62: 30 | B62: 105 | C62: 0 | D62: 13.1 | F62: 2 | G62: 9 | H62: 55 | I62: 14.1
A63: 30 | B63: 106 | C63: 0 | D63: 13.1 | F63: 2 | G63: 9.1 | H63: 55 | I63: 14.21
A64: 30 | B64: 107 | C64: 0 | D64: 13.1 | F64: 2 | G64: 9.2 | H64: 55 | I64: 14.32
A65: 30 | B65: 108 | C65: 0 | D65: 13.1 | F65: 2 | G65: 9.3 | H65: 55 | I65: 14.43
A66: 30 | B66: 109 | C66: 0 | D66: 13.1 | F66: 2 | G66: 9.4 | H66: 55 | I66: 14.54
A67: 30 | B67: 110 | C67: 0 | D67: 13.1 | F67: 2 | G67: 9.5 | H67: 55 | I67: 14.65
A68: 30 | B68: 111 | C68: 0 | D68: 13.1 | F68: 2 | G68: 9.6 | H68: 55 | I68: 14.76
A69: 30 | B69: 112 | C69: 0 | D69: 13.1 | F69: 2 | G69: 9.7 | H69: 55 | I69: 14.87
A70: 30 | B70: 113 | C70: 0 | D70: 13.1 | F70: 2 | G70: 9.8 | H70: 55 | I70: 14.98
A71: 30 | B71: 114 | C71: 0 | D71: 13.1 | F71: 2 | G71: 9.9 | H71: 55 | I71: 15.09
A72: 30 | B72: 115 | C72: 0 | D72: 13.1 | F72: 2 | G72: 10 | H72: 55 | I72: 15.2
A73: 30 | B73: 116 | C73: 0 | D73: 13.1 | F73: 2.1 | G73: 3 | H73: 55 | I73: 10
A74: 30 | B74: 117 | C74: 0 | D74: 13.1 | F74: 2.1 | G74: 3.1 | H74: 55 | I74: 10.091
A75: 30 | B75: 118 | C75: 0 | D75: 13.1 | F75: 2.1 | G75: 3.2 | H75: 55 | I75: 10.182
A76: 30 | B76: 119 | C76: 0 | D76: 13.1 | F76: 2.1 | G76: 3.3 | H76: 55 | I76: 10.273
A77: 30 | B77: 120 | C77: 0 | D77: 13.1 | F77: 2.1 | G77: 3.4 | H77: 55 | I77: 10.364
A78: 30 | B78: 121 | C78: 0 | D78: 13.1 | F78: 2.1 | G78: 3.5 | H78: 55 | I78: 10.455
A79: 30 | B79: 122 | C79: 0 | D79: 13.1 | F79: 2.1 | G79: 3.6 | H79: 55 | I79: 10.546
A80: 30 | B80: 123 | C80: 0 | D80: 13.1 | F80: 2.1 | G80: 3.7 | H80: 55 | I80: 10.637
A81: 30 | B81: 124 | C81: 0 | D81: 13.1 | F81: 2.1 | G81: 3.8 | H81: 55 | I81: 10.728
A82: 30 | B82: 125 | C82: 0 | D82: 13.1 | F82: 2.1 | G82: 3.9 | H82: 55 | I82: 10.819
A83: 30 | B83: 126 | C83: 0 | D83: 13.1 | F83: 2.1 | G83: 4 | H83: 55 | I83: 10.91
A84: 30 | B84: 127 | C84: 0 | D84: 13.1 | F84: 2.1 | G84: 4.1 | H84: 55 | I84: 11.001
A85: 30 | B85: 128 | C85: 0 | D85: 13.1 | F85: 2.1 | G85: 4.2 | H85: 55 | I85: 11.092
A86: 30 | B86: 129 | C86: 0 | D86: 13.1 | F86: 2.1 | G86: 4.3 | H86: 55 | I86: 11.183
A87: 30 | B87: 130 | C87: 0 | D87: 13.1 | F87: 2.1 | G87: 4.4 | H87: 55 | I87: 11.274
A88: 30 | B88: 131 | C88: 0 | D88: 13.1 | F88: 2.1 | G88: 4.5 | H88: 55 | I88: 11.365
A89: 30 | B89: 132 | C89: 0 | D89: 13.1 | F89: 2.1 | G89: 4.6 | H89: 55 | I89: 11.456
A90: 30 | B90: 133 | C90: 0 | D90: 13.1 | F90: 2.1 | G90: 4.7 | H90: 55 | I90: 11.547
A91: 30 | B91: 134 | C91: 0 | D91: 13.1 | F91: 2.1 | G91: 4.8 | H91: 55 | I91: 11.638
A92: 30 | B92: 135 | C92: 0 | D92: 13.1 | F92: 2.1 | G92: 4.9 | H92: 55 | I92: 11.729
A93: 30 | B93: 136 | C93: 0 | D93: 13.1 | F93: 2.1 | G93: 5 | H93: 55 | I93: 11.82
A94: 30 | B94: 137 | C94: 0 | D94: 13.1 | F94: 2.1 | G94: 5.1 | H94: 55 | I94: 11.88
A95: 30 | B95: 138 | C95: 0 | D95: 13.1 | F95: 2.1 | G95: 5.2 | H95: 55 | I95: 11.94
A96: 30 | B96: 139 | C96: 0 | D96: 13.1 | F96: 2.1 | G96: 5.3 | H96: 55 | I96: 12
A97: 30 | B97: 140 | C97: 0 | D97: 13.1 | F97: 2.1 | G97: 5.4 | H97: 55 | I97: 12.06
A98: 30 | B98: 141 | C98: 0 | D98: 13.1 | F98: 2.1 | G98: 5.5 | H98: 55 | I98: 12.12
A99: 30 | B99: 142 | C99: 0 | D99: 13.1 | F99: 2.1 | G99: 5.6 | H99: 55 | I99: 12.18
A100: 30 | B100: 143 | C100: 0 | D100: 13.1 | F100: 2.1 | G100: 5.7 | H100: 55 | I100: 12.24
A101: 30 | B101: 144 | C101: 0 | D101: 13.1 | F101: 2.1 | G101: 5.8 | H101: 55 | I101: 12.3
A102: 30 | B102: 145 | C102: 0 | D102: 13.1 | F102: 2.1 | G102: 5.9 | H102: 55 | I102: 12.36
A103: 30 | B103: 146 | C103: 0 | D103: 13.1 | F103: 2.1 | G103: 6 | H103: 55 | I103: 12.42
A104: 30 | B104: 147 | C104: 0 | D104: 13.1 | F104: 2.1 | G104: 6.1 | H104: 55 | I104: 12.48
A105: 30 | B105: 148 | C105: 0 | D105: 13.1 | F105: 2.1 | G105: 6.2 | H105: 55 | I105: 12.54
A106: 30 | B106: 149 | C106: 0 | D106: 13.1 | F106: 2.1 | G106: 6.3 | H106: 55 | I106: 12.6
A107: 30 | B107: 150 | C107: 0 | D107: 13.1 | F107: 2.1 | G107: 6.4 | H107: 55 | I107: 12.66
A108: 31 | B108: 45 | C108: 0 | D108: 13.11333333 | F108: 2.1 | G108: 6.5 | H108: 55 | I108: 12.72
A109: 31 | B109: 46 | C109: 0 | D109: 13.11333333 | F109: 2.1 | G109: 6.6 | H109: 55 | I109: 12.78
A110: 31 | B110: 47 | C110: 0 | D110: 13.11333333 | F110: 2.1 | G110: 6.7 | H110: 55 | I110: 12.84
A111: 31 | B111: 48 | C111: 0 | D111: 13.11333333 | F111: 2.1 | G111: 6.8 | H111: 55 | I111: 12.9
A112: 31 | B112: 49 | C112: 0 | D112: 13.11333333 | F112: 2.1 | G112: 6.9 | H112: 55 | I112: 12.96
A113: 31 | B113: 50 | C113: 0 | D113: 13.11333333 | F113: 2.1 | G113: 7 | H113: 55 | I113: 13.02
A114: 31 | B114: 51 | C114: 0 | D114: 13.11333333 | F114: 2.1 | G114: 7.1 | H114: 55 | I114: 13.0745
A115: 31 | B115: 52 | C115: 0 | D115: 13.11333333 | F115: 2.1 | G115: 7.2 | H115: 55 | I115: 13.129
A116: 31 | B116: 53 | C116: 0 | D116: 13.11333333 | F116: 2.1 | G116: 7.3 | H116: 55 | I116: 13.1835
A117: 31 | B117: 54 | C117: 0 | D117: 13.11333333 | F117: 2.1 | G117: 7.4 | H117: 55 | I117: 13.238
A118: 31 | B118: 55 | C118: 0 | D118: 13.11333333 | F118: 2.1 | G118: 7.5 | H118: 55 | I118: 13.2925
A119: 31 | B119: 56 | C119: 0 | D119: 13.11333333 | F119: 2.1 | G119: 7.6 | H119: 55 | I119: 13.347
A120: 31 | B120: 57 | C120: 0 | D120: 13.11333333 | F120: 2.1 | G120: 7.7 | H120: 55 | I120: 13.4015
A121: 31 | B121: 58 | C121: 0 | D121: 13.11333333 | F121: 2.1 | G121: 7.8 | H121: 55 | I121: 13.456
A122: 31 | B122: 59 | C122: 0 | D122: 13.11333333 | F122: 2.1 | G122: 7.9 | H122: 55 | I122: 13.5105
A123: 31 | B123: 60 | C123: 0 | D123: 13.11333333 | F123: 2.1 | G123: 8 | H123: 55 | I123: 13.565
A124: 31 | B124: 61 | C124: 0 | D124: 13.11333333 | F124: 2.1 | G124: 8.1 | H124: 55 | I124: 13.6195
A125: 31 | B125: 62 | C125: 0 | D125: 13.11333333 | F125: 2.1 | G125: 8.2 | H125: 55 | I125: 13.674
A126: 31 | B126: 63 | C126: 0 | D126: 13.11333333 | F126: 2.1 | G126: 8.3 | H126: 55 | I126: 13.7285
A127: 31 | B127: 64 | C127: 0 | D127: 13.11333333 | F127: 2.1 | G127: 8.4 | H127: 55 | I127: 13.783
A128: 31 | B128: 65 | C128: 0 | D128: 13.11333333 | F128: 2.1 | G128: 8.5 | H128: 55 | I128: 13.8375
A129: 31 | B129: 66 | C129: 0 | D129: 13.11333333 | F129: 2.1 | G129: 8.6 | H129: 55 | I129: 13.892
A130: 31 | B130: 67 | C130: 0 | D130: 13.11333333 | F130: 2.1 | G130: 8.7 | H130: 55 | I130: 13.9465
A131: 31 | B131: 68 | C131: 0 | D131: 13.11333333 | F131: 2.1 | G131: 8.8 | H131: 55 | I131: 14.001
A132: 31 | B132: 69 | C132: 0 | D132: 13.11333333 | F132: 2.1 | G132: 8.9 | H132: 55 | I132: 14.0555
A133: 31 | B133: 70 | C133: 0 | D133: 13.11333333 | F133: 2.1 | G133: 9 | H133: 55 | I133: 14.11
A134: 31 | B134: 71 | C134: 0 | D134: 13.11333333 | F134: 2.1 | G134: 9.1 | H134: 55 | I134: 14.22
A135: 31 | B135: 72 | C135: 0 | D135: 13.11333333 | F135: 2.1 | G135: 9.2 | H135: 55 | I135: 14.33
A136: 31 | B136: 73 | C136: 0 | D136: 13.11333333 | F136: 2.1 | G136: 9.3 | H136: 55 | I136: 14.44
A137: 31 | B137: 74 | C137: 0 | D137: 13.11333333 | F137: 2.1 | G137: 9.4 | H137: 55 | I137: 14.55
A138: 31 | B138: 75 | C138: 0 | D138: 13.11333333 | F138: 2.1 | G138: 9.5 | H138: 55 | I138: 14.66
A139: 31 | B139: 76 | C139: 0 | D139: 13.11333333 | F139: 2.1 | G139: 9.6 | H139: 55 | I139: 14.77
A140: 31 | B140: 77 | C140: 0 | D140: 13.11333333 | F140: 2.1 | G140: 9.7 | H140: 55 | I140: 14.88
A141: 31 | B141: 78 | C141: 0 | D141: 13.11333333 | F141: 2.1 | G141: 9.8 | H141: 55 | I141: 14.99
A142: 31 | B142: 79 | C142: 0 | D142: 13.11333333 | F142: 2.1 | G142: 9.9 | H142: 55 | I142: 15.1
A143: 31 | B143: 80 | C143: 0 | D143: 13.11333333 | F143: 2.1 | G143: 10 | H143: 55 | I143: 15.21
A144: 31 | B144: 81 | C144: 0 | D144: 13.11333333 | F144: 2.2 | G144: 3 | H144: 55 | I144: 10
A145: 31 | B145: 82 | C145: 0 | D145: 13.11333333 | F145: 2.2 | G145: 3.1 | H145: 55 | I145: 10.092
A146: 31 | B146: 83 | C146: 0 | D146: 13.11333333 | F146: 2.2 | G146: 3.2 | H146: 55 | I146: 10.184
A147: 31 | B147: 84 | C147: 0 | D147: 13.11333333 | F147: 2.2 | G147: 3.3 | H147: 55 | I147: 10.276
A148: 31 | B148: 85 | C148: 0 | D148: 13.11333333 | F148: 2.2 | G148: 3.4 | H148: 55 | I148: 10.368
A149: 31 | B149: 86 | C149: 0 | D149: 13.11333333 | F149: 2.2 | G149: 3.5 | H149: 55 | I149: 10.46
A150: 31 | B150: 87 | C150: 0 | D150: 13.11333333 | F150: 2.2 | G150: 3.6 | H150: 55 | I150: 10.552
A151: 31 | B151: 88 | C151: 0 | D151: 13.11333333 | F151: 2.2 | G151: 3.7 | H151: 55 | I151: 10.644
A152: 31 | B152: 89 | C152: 0 | D152: 13.11333333 | F152: 2.2 | G152: 3.8 | H152: 55 | I152: 10.736
A153: 31 | B153: 90 | C153: 0 | D153: 13.11333333 | F153: 2.2 | G153: 3.9 | H153: 55 | I153: 10.828
A154: 31 | B154: 91 | C154: 0 | D154: 13.11333333 | F154: 2.2 | G154: 4 | H154: 55 | I154: 10.92
A155: 31 | B155: 92 | C155: 0 | D155: 13.11333333 | F155: 2.2 | G155: 4.1 | H155: 55 | I155: 11.012
A156: 31 | B156: 93 | C156: 0 | D156: 13.11333333 | F156: 2.2 | G156: 4.2 | H156: 55 | I156: 11.104
A157: 31 | B157: 94 | C157: 0 | D157: 13.11333333 | F157: 2.2 | G157: 4.3 | H157: 55 | I157: 11.196
A158: 31 | B158: 95 | C158: 0 | D158: 13.11333333 | F158: 2.2 | G158: 4.4 | H158: 55 | I158: 11.288
A159: 31 | B159: 96 | C159: 0 | D159: 13.11333333 | F159: 2.2 | G159: 4.5 | H159: 55 | I159: 11.38
A160: 31 | B160: 97 | C160: 0 | D160: 13.11333333 | F160: 2.2 | G160: 4.6 | H160: 55 | I160: 11.472
A161: 31 | B161: 98 | C161: 0 | D161: 13.11333333 | F161: 2.2 | G161: 4.7 | H161: 55 | I161: 11.564
A162: 31 | B162: 99 | C162: 0 | D162: 13.11333333 | F162: 2.2 | G162: 4.8 | H162: 55 | I162: 11.656
A163: 31 | B163: 100 | C163: 0 | D163: 13.11333333 | F163: 2.2 | G163: 4.9 | H163: 55 | I163: 11.748
A164: 31 | B164: 101 | C164: 0 | D164: 13.11333333 | F164: 2.2 | G164: 5 | H164: 55 | I164: 11.84
A165: 31 | B165: 102 | C165: 0 | D165: 13.11333333 | F165: 2.2 | G165: 5.1 | H165: 55 | I165: 11.9
A166: 31 | B166: 103 | C166: 0 | D166: 13.11333333 | F166: 2.2 | G166: 5.2 | H166: 55 | I166: 11.96
A167: 31 | B167: 104 | C167: 0 | D167: 13.11333333 | F167: 2.2 | G167: 5.3 | H167: 55 | I167: 12.02
A168: 31 | B168: 105 | C168: 0 | D168: 13.11333333 | F168: 2.2 | G168: 5.4 | H168: 55 | I168: 12.08
A169: 31 | B169: 106 | C169: 0 | D169: 13.11333333 | F169: 2.2 | G169: 5.5 | H169: 55 | I169: 12.14
A170: 31 | B170: 107 | C170: 0 | D170: 13.11333333 | F170: 2.2 | G170: 5.6 | H170: 55 | I170: 12.2
A171: 31 | B171: 108 | C171: 0 | D171: 13.11333333 | F171: 2.2 | G171: 5.7 | H171: 55 | I171: 12.26
A172: 31 | B172: 109 | C172: 0 | D172: 13.11333333 | F172: 2.2 | G172: 5.8 | H172: 55 | I172: 12.32
A173: 31 | B173: 110 | C173: 0 | D173: 13.11333333 | F173: 2.2 | G173: 5.9 | H173: 55 | I173: 12.38
A174: 31 | B174: 111 | C174: 0 | D174: 13.11333333 | F174: 2.2 | G174: 6 | H174: 55 | I174: 12.44
A175: 31 | B175: 112 | C175: 0 | D175: 13.11333333 | F175: 2.2 | G175: 6.1 | H175: 55 | I175: 12.5
A176: 31 | B176: 113 | C176: 0 | D176: 13.11333333 | F176: 2.2 | G176: 6.2 | H176: 55 | I176: 12.56
A177: 31 | B177: 114 | C177: 0 | D177: 13.11333333 | F177: 2.2 | G177: 6.3 | H177: 55 | I177: 12.62
A178: 31 | B178: 115 | C178: 0 | D178: 13.11333333 | F178: 2.2 | G178: 6.4 | H178: 55 | I178: 12.68
A179: 31 | B179: 116 | C179: 0 | D179: 13.11333333 | F179: 2.2 | G179: 6.5 | H179: 55 | I179: 12.74
A180: 31 | B180: 117 | C180: 0 | D180: 13.11333333 | F180: 2.2 | G180: 6.6 | H180: 55 | I180: 12.8
A181: 31 | B181: 118 | C181: 0 | D181: 13.11333333 | F181: 2.2 | G181: 6.7 | H181: 55 | I181: 12.86
A182: 31 | B182: 119 | C182: 0 | D182: 13.11333333 | F182: 2.2 | G182: 6.8 | H182: 55 | I182: 12.92
A183: 31 | B183: 120 | C183: 0 | D183: 13.11333333 | F183: 2.2 | G183: 6.9 | H183: 55 | I183: 12.98
A184: 31 | B184: 121 | C184: 0 | D184: 13.11333333 | F184: 2.2 | G184: 7 | H184: 55 | I184: 13.04
A185: 31 | B185: 122 | C185: 0 | D185: 13.11333333 | F185: 2.2 | G185: 7.1 | H185: 55 | I185: 13.094
A186: 31 | B186: 123 | C186: 0 | D186: 13.11333333 | F186: 2.2 | G186: 7.2 | H186: 55 | I186: 13.148
A187: 31 | B187: 124 | C187: 0 | D187: 13.11333333 | F187: 2.2 | G187: 7.3 | H187: 55 | I187: 13.202
A188: 31 | B188: 125 | C188: 0 | D188: 13.11333333 | F188: 2.2 | G188: 7.4 | H188: 55 | I188: 13.256
A189: 31 | B189: 126 | C189: 0 | D189: 13.11333333 | F189: 2.2 | G189: 7.5 | H189: 55 | I189: 13.31
A190: 31 | B190: 127 | C190: 0 | D190: 13.11333333 | F190: 2.2 | G190: 7.6 | H190: 55 | I190: 13.364
A191: 31 | B191: 128 | C191: 0 | D191: 13.11333333 | F191: 2.2 | G191: 7.7 | H191: 55 | I191: 13.418
A192: 31 | B192: 129 | C192: 0 | D192: 13.11333333 | F192: 2.2 | G192: 7.8 | H192: 55 | I192: 13.472
A193: 31 | B193: 130 | C193: 0 | D193: 13.11333333 | F193: 2.2 | G193: 7.9 | H193: 55 | I193: 13.526
A194: 31 | B194: 131 | C194: 0 | D194: 13.11333333 | F194: 2.2 | G194: 8 | H194: 55 | I194: 13.58
A195: 31 | B195: 132 | C195: 0 | D195: 13.11333333 | F195: 2.2 | G195: 8.1 | H195: 55 | I195: 13.634
A196: 31 | B196: 133 | C196: 0 | D196: 13.11333333 | F196: 2.2 | G196: 8.2 | H196: 55 | I196: 13.688
A197: 31 | B197: 134 | C197: 0 | D197: 13.11333333 | F197: 2.2 | G197: 8.3 | H197: 55 | I197: 13.742
A198: 31 | B198: 135 | C198: 0 | D198: 13.11333333 | F198: 2.2 | G198: 8.4 | H198: 55 | I198: 13.796
A199: 31 | B199: 136 | C199: 0 | D199: 13.11333333 | F199: 2.2 | G199: 8.5 | H199: 55 | I199: 13.85
A200: 31 | B200: 137 | C200: 0 | D200: 13.11333333 | F200: 2.2 | G200: 8.6 | H200: 55 | I200: 13.904
... 4300 more rows

Sheet Data Sheet 1 (hidden)
A1: Absolute | B1: Boiling Point | C1: Specific Volume (steam) | D1: Density (steam) | E1: Specific Enthalpy of Liquid Water | G1: Specific Enthalpy of Steam | I1: Latent heat of Vaporization | K1: Specific Heat
A2: Pressure | E2: (sensible heat) | G2: (total heat)
A3: (bar) | B3: (oC) | C3: (m3/kg) | D3: (kg/m3) | E3: (kJ/kg) | F3: (kcal/kg) | G3: (kJ/kg) | H3: (kcal/kg) | I3: (kJ/kg) | J3: (kcal/kg) | K3: (kJ/kg K)
A4: 0.02 | B4: 17.51 | C4: 67.006 | D4: 0.015 | E4: 73.45 | F4: 17.54 | G4: 2533.64 | H4: 605.15 | I4: 2460.19 | J4: 587.61 | K4: 1.8644
A5: 0.03 | B5: 24.1 | C5: 45.667 | D5: 0.022 | E5: 101 | F5: 24.12 | G5: 2545.64 | H5: 608.02 | I5: 2444.65 | J5: 583.89 | K5: 1.8694
A6: 0.04 | B6: 28.98 | C6: 34.802 | D6: 0.029 | E6: 121.41 | F6: 29 | G6: 2554.51 | H6: 610.13 | I6: 2433.1 | J6: 581.14 | K6: 1.8736
A7: 0.05 | B7: 32.9 | C7: 28.194 | D7: 0.035 | E7: 137.77 | F7: 32.91 | G7: 2561.59 | H7: 611.83 | I7: 2423.82 | J7: 578.92 | K7: 1.8774
A8: 0.06 | B8: 36.18 | C8: 23.741 | D8: 0.042 | E8: 151.5 | F8: 36.19 | G8: 2567.51 | H8: 613.24 | I8: 2416.01 | J8: 577.05 | K8: 1.8808
A9: 0.07 | B9: 39.02 | C9: 20.531 | D9: 0.049 | E9: 163.38 | F9: 39.02 | G9: 2572.62 | H9: 614.46 | I9: 2409.24 | J9: 575.44 | K9: 1.884
A10: 0.08 | B10: 41.53 | C10: 18.105 | D10: 0.055 | E10: 173.87 | F10: 41.53 | G10: 2577.11 | H10: 615.53 | I10: 2403.25 | J10: 574.01 | K10: 1.8871
A11: 0.09 | B11: 43.79 | C11: 16.204 | D11: 0.062 | E11: 183.28 | F11: 43.78 | G11: 2581.14 | H11: 616.49 | I11: 2397.85 | J11: 572.72 | K11: 1.8899
A12: 0.1 | B12: 45.83 | C12: 14.675 | D12: 0.068 | E12: 191.84 | F12: 45.82 | G12: 2584.78 | H12: 617.36 | I12: 2392.94 | J12: 571.54 | K12: 1.8927
A13: 0.2 | B13: 60.09 | C13: 7.65 | D13: 0.131 | E13: 251.46 | F13: 60.06 | G13: 2609.86 | H13: 623.35 | I13: 2358.4 | J13: 563.3 | K13: 1.9156
A14: 0.3 | B14: 69.13 | C14: 5.229 | D14: 0.191 | E14: 289.31 | F14: 69.1 | G14: 2625.43 | H14: 627.07 | I14: 2336.13 | J14: 557.97 | K14: 1.9343
A15: 0.4 | B15: 75.89 | C15: 3.993 | D15: 0.25 | E15: 317.65 | F15: 75.87 | G15: 2636.88 | H15: 629.81 | I15: 2319.23 | J15: 553.94 | K15: 1.9506
A16: 0.5 | B16: 81.35 | C16: 3.24 | D16: 0.309 | E16: 340.57 | F16: 81.34 | G16: 2645.99 | H16: 631.98 | I16: 2305.42 | J16: 550.64 | K16: 1.9654
A17: 0.6 | B17: 85.95 | C17: 2.732 | D17: 0.366 | E17: 359.93 | F17: 85.97 | G17: 2653.57 | H17: 633.79 | I17: 2293.64 | J17: 547.83 | K17: 1.979
A18: 0.7 | B18: 89.96 | C18: 2.365 | D18: 0.423 | E18: 376.77 | F18: 89.99 | G18: 2660.07 | H18: 635.35 | I18: 2283.3 | J18: 545.36 | K18: 1.9919
A19: 0.8 | B19: 93.51 | C19: 2.087 | D19: 0.479 | E19: 391.73 | F19: 93.56 | G19: 2665.77 | H19: 636.71 | I19: 2274.05 | J19: 543.15 | K19: 2.004
A20: 0.9 | B20: 96.71 | C20: 1.869 | D20: 0.535 | E20: 405.21 | F20: 96.78 | G20: 2670.85 | H20: 637.92 | I20: 2265.65 | J20: 541.14 | K20: 2.0156
A21: 11) | B21: 99.63 | C21: 1.694 | D21: 0.59 | E21: 417.51 | F21: 99.72 | G21: 2675.43 | H21: 639.02 | I21: 2257.92 | J21: 539.3 | K21: 2.0267
A22: 1.1 | B22: 102.32 | C22: 1.549 | D22: 0.645 | E22: 428.84 | F22: 102.43 | G22: 2679.61 | H22: 640.01 | I22: 2250.76 | J22: 537.59 | K22: 2.0373
A23: 1.2 | B23: 104.81 | C23: 1.428 | D23: 0.7 | E23: 439.36 | F23: 104.94 | G23: 2683.44 | H23: 640.93 | I23: 2244.08 | J23: 535.99 | K23: 2.0476
A24: 1.3 | B24: 107.13 | C24: 1.325 | D24: 0.755 | E24: 449.19 | F24: 107.29 | G24: 2686.98 | H24: 641.77 | I24: 2237.79 | J24: 534.49 | K24: 2.0576
A25: 1.4 | B25: 109.32 | C25: 1.236 | D25: 0.809 | E25: 458.42 | F25: 109.49 | G25: 2690.28 | H25: 642.56 | I25: 2231.86 | J25: 533.07 | K25: 2.0673
A26: 1.5 | B26: 111.37 | C26: 1.159 | D26: 0.863 | E26: 467.13 | F26: 111.57 | G26: 2693.36 | H26: 643.3 | I26: 2226.23 | J26: 531.73 | K26: 2.0768
A27: 1.6 | B27: 113.32 | C27: 1.091 | D27: 0.916 | E27: 475.38 | F27: 113.54 | G27: 2696.25 | H27: 643.99 | I27: 2220.87 | J27: 530.45 | K27: 2.086
A28: 1.7 | B28: 115.17 | C28: 1.031 | D28: 0.97 | E28: 483.22 | F28: 115.42 | G28: 2698.97 | H28: 644.64 | I28: 2215.75 | J28: 529.22 | K28: 2.095
A29: 1.8 | B29: 116.93 | C29: 0.977 | D29: 1.023 | E29: 490.7 | F29: 117.2 | G29: 2701.54 | H29: 645.25 | I29: 2210.84 | J29: 528.05 | K29: 2.1037
A30: 1.9 | B30: 118.62 | C30: 0.929 | D30: 1.076 | E30: 497.85 | F30: 118.91 | G30: 2703.98 | H30: 645.83 | I30: 2206.13 | J30: 526.92 | K30: 2.1124
A31: 2 | B31: 120.23 | C31: 0.885 | D31: 1.129 | E31: 504.71 | F31: 120.55 | G31: 2706.29 | H31: 646.39 | I31: 2201.59 | J31: 525.84 | K31: 2.1208
A32: 2.2 | B32: 123.27 | C32: 0.81 | D32: 1.235 | E32: 517.63 | F32: 123.63 | G32: 2710.6 | H32: 647.42 | I32: 2192.98 | J32: 523.78 | K32: 2.1372
A33: 2.4 | B33: 126.09 | C33: 0.746 | D33: 1.34 | E33: 529.64 | F33: 126.5 | G33: 2714.55 | H33: 648.36 | I33: 2184.91 | J33: 521.86 | K33: 2.1531
A34: 2.6 | B34: 128.73 | C34: 0.693 | D34: 1.444 | E34: 540.88 | F34: 129.19 | G34: 2718.17 | H34: 649.22 | I34: 2177.3 | J34: 520.04 | K34: 2.1685
A35: 2.8 | B35: 131.2 | C35: 0.646 | D35: 1.548 | E35: 551.45 | F35: 131.71 | G35: 2721.54 | H35: 650.03 | I35: 2170.08 | J35: 518.32 | K35: 2.1835
A36: 3 | B36: 133.54 | C36: 0.606 | D36: 1.651 | E36: 561.44 | F36: 134.1 | G36: 2724.66 | H36: 650.77 | I36: 2163.22 | J36: 516.68 | K36: 2.1981
A37: 3.5 | B37: 138.87 | C37: 0.524 | D37: 1.908 | E37: 584.28 | F37: 139.55 | G37: 2731.63 | H37: 652.44 | I37: 2147.35 | J37: 512.89 | K37: 2.2331
A38: 4 | B38: 143.63 | C38: 0.462 | D38: 2.163 | E38: 604.68 | F38: 144.43 | G38: 2737.63 | H38: 653.87 | I38: 2132.95 | J38: 509.45 | K38: 2.2664
A39: 4.5 | B39: 147.92 | C39: 0.414 | D39: 2.417 | E39: 623.17 | F39: 148.84 | G39: 2742.88 | H39: 655.13 | I39: 2119.71 | J39: 506.29 | K39: 2.2983
A40: 5 | B40: 151.85 | C40: 0.375 | D40: 2.669 | E40: 640.12 | F40: 152.89 | G40: 2747.54 | H40: 656.24 | I40: 2107.42 | J40: 503.35 | K40: 2.3289
A41: 5.5 | B41: 155.47 | C41: 0.342 | D41: 2.92 | E41: 655.81 | F41: 156.64 | G41: 2751.7 | H41: 657.23 | I41: 2095.9 | J41: 500.6 | K41: 2.3585
A42: 6 | B42: 158.84 | C42: 0.315 | D42: 3.17 | E42: 670.43 | F42: 160.13 | G42: 2755.46 | H42: 658.13 | I42: 2085.03 | J42: 498 | K42: 2.3873
A43: 6.5 | B43: 161.99 | C43: 0.292 | D43: 3.419 | E43: 684.14 | F43: 163.4 | G43: 2758.87 | H43: 658.94 | I43: 2074.73 | J43: 495.54 | K43: 2.4152
A44: 7 | B44: 164.96 | C44: 0.273 | D44: 3.667 | E44: 697.07 | F44: 166.49 | G44: 2761.98 | H44: 659.69 | I44: 2064.92 | J44: 493.2 | K44: 2.4424
A45: 7.5 | B45: 167.76 | C45: 0.255 | D45: 3.915 | E45: 709.3 | F45: 169.41 | G45: 2764.84 | H45: 660.37 | I45: 2055.53 | J45: 490.96 | K45: 2.469
A46: 8 | B46: 170.42 | C46: 0.24 | D46: 4.162 | E46: 720.94 | F46: 172.19 | G46: 2767.46 | H46: 661 | I46: 2046.53 | J46: 488.8 | K46: 2.4951
A47: 8.5 | B47: 172.94 | C47: 0.227 | D47: 4.409 | E47: 732.03 | F47: 174.84 | G47: 2769.89 | H47: 661.58 | I47: 2037.86 | J47: 486.73 | K47: 2.5206
A48: 9 | B48: 175.36 | C48: 0.215 | D48: 4.655 | E48: 742.64 | F48: 177.38 | G48: 2772.13 | H48: 662.11 | I48: 2029.49 | J48: 484.74 | K48: 2.5456
A49: 9.5 | B49: 177.67 | C49: 0.204 | D49: 4.901 | E49: 752.82 | F49: 179.81 | G49: 2774.22 | H49: 662.61 | I49: 2021.4 | J49: 482.8 | K49: 2.5702
A50: 10 | B50: 179.88 | C50: 0.194 | D50: 5.147 | E50: 762.6 | F50: 182.14 | G50: 2776.16 | H50: 663.07 | I50: 2013.56 | J50: 480.93 | K50: 2.5944
A51: 11 | B51: 184.06 | C51: 0.177 | D51: 5.638 | E51: 781.11 | F51: 186.57 | G51: 2779.66 | H51: 663.91 | I51: 1998.55 | J51: 477.35 | K51: 2.6418
A52: 12 | B52: 187.96 | C52: 0.163 | D52: 6.127 | E52: 798.42 | F52: 190.7 | G52: 2782.73 | H52: 664.64 | I52: 1984.31 | J52: 473.94 | K52: 2.6878
A53: 13 | B53: 191.6 | C53: 0.151 | D53: 6.617 | E53: 814.68 | F53: 194.58 | G53: 2785.42 | H53: 665.29 | I53: 1970.73 | J53: 470.7 | K53: 2.7327
A54: 14 | B54: 195.04 | C54: 0.141 | D54: 7.106 | E54: 830.05 | F54: 198.26 | G54: 2787.79 | H54: 665.85 | I54: 1957.73 | J54: 467.6 | K54: 2.7767
A55: 15 | B55: 198.28 | C55: 0.132 | D55: 7.596 | E55: 844.64 | F55: 201.74 | G55: 2789.88 | H55: 666.35 | I55: 1945.24 | J55: 464.61 | K55: 2.8197
A56: 16 | B56: 201.37 | C56: 0.124 | D56: 8.085 | E56: 858.54 | F56: 205.06 | G56: 2791.73 | H56: 666.79 | I56: 1933.19 | J56: 461.74 | K56: 2.862
A57: 17 | B57: 204.3 | C57: 0.117 | D57: 8.575 | E57: 871.82 | F57: 208.23 | G57: 2793.37 | H57: 667.18 | I57: 1921.55 | J57: 458.95 | K57: 2.9036
A58: 18 | B58: 207.11 | C58: 0.11 | D58: 9.065 | E58: 884.55 | F58: 211.27 | G58: 2794.81 | H58: 667.53 | I58: 1910.27 | J58: 456.26 | K58: 2.9445
A59: 19 | B59: 209.79 | C59: 0.105 | D59: 9.556 | E59: 896.78 | F59: 214.19 | G59: 2796.09 | H59: 667.83 | I59: 1899.31 | J59: 453.64 | K59: 2.9849
A60: 20 | B60: 212.37 | C60: 0.1 | D60: 10.047 | E60: 908.56 | F60: 217.01 | G60: 2797.21 | H60: 668.1 | I60: 1888.65 | J60: 451.1 | K60: 3.0248
A61: 21 | B61: 214.85 | C61: 0.095 | D61: 10.539 | E61: 919.93 | F61: 219.72 | G61: 2798.18 | H61: 668.33 | I61: 1878.25 | J61: 448.61 | K61: 3.0643
A62: 22 | B62: 217.24 | C62: 0.091 | D62: 11.032 | E62: 930.92 | F62: 222.35 | G62: 2799.03 | H62: 668.54 | I62: 1868.11 | J62: 446.19 | K62: 3.1034
A63: 23 | B63: 219.55 | C63: 0.087 | D63: 11.525 | E63: 941.57 | F63: 224.89 | G63: 2799.77 | H63: 668.71 | I63: 1858.2 | J63: 443.82 | K63: 3.1421
A64: 24 | B64: 221.78 | C64: 0.083 | D64: 12.02 | E64: 951.9 | F64: 227.36 | G64: 2800.39 | H64: 668.86 | I64: 1848.49 | J64: 441.5 | K64: 3.1805
A65: 25 | B65: 223.94 | C65: 0.08 | D65: 12.515 | E65: 961.93 | F65: 229.75 | G65: 2800.91 | H65: 668.99 | I65: 1838.98 | J65: 439.23 | K65: 3.2187
A66: 26 | B66: 226.03 | C66: 0.077 | D66: 13.012 | E66: 971.69 | F66: 232.08 | G66: 2801.35 | H66: 669.09 | I66: 1829.66 | J66: 437.01 | K66: 3.2567
A67: 27 | B67: 228.06 | C67: 0.074 | D67: 13.509 | E67: 981.19 | F67: 234.35 | G67: 2801.69 | H67: 669.17 | I67: 1820.5 | J67: 434.82 | K67: 3.2944
A68: 28 | B68: 230.04 | C68: 0.071 | D68: 14.008 | E68: 990.46 | F68: 236.57 | G68: 2801.96 | H68: 669.24 | I68: 1811.5 | J68: 432.67 | K68: 3.332
A69: 29 | B69: 231.96 | C69: 0.069 | D69: 14.508 | E69: 999.5 | F69: 238.73 | G69: 2802.15 | H69: 669.28 | I69: 1802.65 | J69: 430.56 | K69: 3.3695
A70: 30 | B70: 233.84 | C70: 0.067 | D70: 15.009 | E70: 1008.33 | F70: 240.84 | G70: 2802.27 | H70: 669.31 | I70: 1793.94 | J70: 428.48 | K70: 3.4069
